bitfinex/quotes_ETHUSD_20251017
["timestamp","ask_amount","ask_price","bid_price","bid_amount"]
[1760725076994,0.75226611,3825.4,3825.0,0.1304]
[1760725077144,3.04831732,3825.4,3825.0,0.1304]
[1760725077348,2.61416555,3825.4,3825.0,0.1304]
[1760725077590,0.4342,3825.3,3825.0,0.1304]
[1760725077823,2.74639015,3825.6,3825.0,0.1304]
[1760725077824,0.1324,3825.6,3825.0,0.1304]
[1760725078180,2.61409293,3825.5,3825.0,0.1304]
[1760725078511,2.61419224,3825.3,3825.0,0.1304]
[1760725078722,0.1324,3825.6,3825.0,0.1304]
[1760725079011,2.61411992,3825.4,3825.0,0.1304]
[1760725079393,2.74637042,3825.6,3825.0,0.1304]
[1760725079394,2.61406112,3825.5,3825.0,0.1304]
[1760725080286,0.1324,3825.6,3825.1,0.1704]
[1760725080287,0.002,3825.4,3825.1,0.1704]
[1760725080616,0.002,3825.4,3825.3,0.1304]
[1760725081808,0.002,3825.4,3825.3,2.74457405]
[1760725081998,0.002,3825.4,3825.3,3.7514969]
[1760725084681,0.002,3825.4,3825.3,3.2974969]
[1760725084877,0.002,3825.4,3825.3,0.1304]
[1760725085082,0.002,3825.4,3825.3,2.74457405]
[1760725085278,0.002,3825.4,3825.3,0.1304]
[1760725085502,0.002,3825.4,3825.3,2.74457405]
[1760725086580,0.002,3825.4,3825.3,0.1304]
[1760725086781,0.4593,3825.4,3824.8,0.001]
[1760725086976,0.2351,3824.9,3824.8,0.001]
[1760725087382,0.6924,3824.9,3824.8,0.001]
[1760725087581,3.30684743,3824.9,3824.8,0.001]
[1760725087784,3.89895155,3824.9,3824.8,0.001]
[1760725090246,23.82915791,3824.9,3824.8,0.001]
[1760725090528,28.98769791,3824.9,3824.8,0.001]
[1760725090699,28.23917434,3824.9,3824.8,0.001]
[1760725090900,27.32766634,3824.9,3824.8,0.001]
[1760725091120,21.24223034,3824.9,3824.8,0.001]
[1760725091285,21.28780926,3824.9,3824.8,0.001]
[1760725093434,51.28780926,3824.9,3824.8,0.001]
[1760725093633,51.39267242,3824.9,3824.8,0.001]
[1760725093822,42.09946742,3824.9,3824.8,0.001]
[1760725094025,27.37868042,3824.9,3824.8,0.001]
[1760725094451,21.39267242,3824.9,3824.8,0.001]
[1760725094656,30.65621842,3824.9,3824.8,0.001]
[1760725094957,26.80586342,3824.9,3824.8,0.001]
[1760725095127,23.91248842,3824.9,3824.8,0.001]
[1760725095466,21.39267242,3824.9,3824.8,0.001]
[1760725096656,48.42872542,3824.9,3824.8,0.001]
[1760725096957,34.01402642,3824.9,3824.8,0.001]
[1760725097643,32.55657487,3824.5,3824.3,0.001]
[1760725097953,21.65387587,3824.5,3824.3,0.001]
[1760725098167,22.11117587,3824.5,3824.3,0.001]
[1760725098459,22.67185156,3824.5,3824.3,0.001]
[1760725099159,21.14604856,3824.5,3824.3,0.001]
[1760725099360,21.69797139,3824.5,3824.3,0.001]
[1760725099863,19.99987139,3824.5,3824.3,0.001]
[1760725100062,5.91261939,3824.5,3824.3,0.001]
[1760725100373,5.35044001,3824.5,3824.3,0.001]
[1760725100729,0.45579631,3824.5,3824.3,0.001]
[1760725100931,3.20091718,3824.5,3824.4,0.4463]
[1760725101150,3.24800333,3824.5,3824.4,0.001]
[1760725101348,3.20242087,3824.5,3824.4,0.001]
[1760725102271,39.10999787,3824.5,3824.4,0.001]
[1760725102481,27.0155034,3824.5,3824.4,0.001]
[1760725102827,13.5656004,3824.5,3824.4,0.001]
[1760725103160,14.0115004,3824.5,3824.4,0.001]
[1760725103363,29.41807234,3824.5,3824.4,0.001]
[1760725103869,29.46364874,3824.5,3824.4,0.001]
[1760725104274,32.47696474,3824.5,3824.4,0.001]
[1760725105265,4.34278924,3824.4,3824.3,0.001]
[1760725105571,13.94172437,3824.1,3822.4,0.4672]
[1760725105877,8.22129437,3824.1,3822.3,0.1304]
[1760725106075,8.22129437,3824.1,3823.1,0.1704]
[1760725106076,7.61689437,3824.1,3823.1,0.1704]
[1760725106284,10.1177795,3824.1,3823.1,0.1704]
[1760725106485,17.0063595,3824.1,3823.1,0.1704]
[1760725106968,17.0063595,3824.1,3822.8,0.5958]
[1760725107354,17.0063595,3824.1,3822.8,0.1286]
[1760725107566,2.61574679,3823.0,3822.8,0.1286]
[1760725107773,4.34374679,3823.0,3822.4,0.1286]
[1760725108263,4.75402984,3823.0,3822.4,0.1286]
[1760725108438,2.72570026,3823.0,3822.4,0.1286]
[1760725108772,2.13828305,3823.0,3822.4,0.1286]
[1760725109067,2.13828305,3823.0,3822.9,0.4682]
[1760725109252,1.728,3823.0,3822.9,0.4682]
[1760725111874,1.77359207,3823.0,3822.9,0.4682]
[1760725112680,1.728,3823.0,3822.9,0.4682]
[1760725113437,0.04559029,3823.4,3822.9,0.4682]
[1760725113759,0.04559029,3823.4,3823.3,0.1704]
[1760725114135,0.04559029,3823.4,3823.3,0.6376]
[1760725114362,0.04559029,3823.4,3823.3,0.1704]
[1760725114974,0.04559029,3823.4,3823.3,0.6376]
[1760725115541,2.61492891,3824.2,3823.3,0.6376]
[1760725115774,0.04558546,3824.1,3823.4,0.4672]
[1760725115941,2.66058919,3824.1,3823.4,0.4672]
[1760725116273,0.04558546,3824.1,3823.3,0.1704]
[1760725116470,2.61506276,3824.0,3823.3,0.1704]
[1760725116639,0.2364,3823.9,3823.3,0.001]
[1760725116839,2.6154315,3823.5,3823.3,0.001]
[1760725117263,2.61536227,3823.6,3823.3,0.001]
[1760725117876,2.61541005,3823.5,3823.3,0.001]
[1760725118166,2.61535936,3823.6,3823.3,0.001]
[1760725118373,3.20664525,3823.6,3823.3,0.001]
[1760725118572,2.61541307,3823.5,3823.3,0.001]
[1760725119463,3.20664194,3823.6,3823.3,0.001]
[1760725119860,2.6154108,3823.5,3823.3,0.001]
[1760725120065,2.61547313,3823.4,3823.3,0.001]
[1760725120385,0.6268003,3823.4,3823.3,0.001]
[1760725120783,0.04558874,3823.8,3823.3,0.001]
[1760725121281,2.61533892,3823.6,3823.3,0.001]
[1760725121684,2.61543881,3823.5,3823.3,0.001]
[1760725122683,0.4459,3823.4,3823.3,0.001]
[1760725122858,0.4459,3823.7,3823.3,0.001]
[1760725123060,2.86093236,3823.6,3823.3,0.001]
[1760725123396,0.24558887,3823.6,3823.3,0.001]
[1760725125883,0.4459,3823.5,3823.3,0.001]
[1760725126197,0.04558874,3823.8,3823.3,0.001]
[1760725126594,2.61530968,3823.7,3823.3,0.001]
[1760725126801,0.55124389,3823.6,3823.3,0.001]
[1760725126995,3.16658714,3823.6,3823.3,0.001]
[1760725127322,2.61547313,3823.4,3823.3,0.001]
[1760725127691,3.06137313,3823.4,3823.3,0.001]
[1760725128024,3.1069651,3823.4,3823.3,0.001]
[1760725128186,5.87261395,3823.4,3823.3,0.001]
[1760725128630,35.47817595,3823.4,3823.3,0.001]
[1760725128911,30.92214357,3823.4,3823.3,0.001]
[1760725129094,24.1232406,3823.4,3823.3,0.001]
[1760725129489,23.74827298,3823.4,3823.3,0.001]
[1760725129713,5.82702198,3823.4,3823.3,0.001]
[1760725130015,2.76564885,3823.4,3823.3,0.001]
[1760725130214,2.13829271,3823.4,3823.3,0.001]
[1760725130603,1.728,3823.4,3823.3,0.001]
[1760725130819,0.41026957,3823.9,3823.3,0.4682]
[1760725131009,0.1304,3823.5,3823.3,0.4682]
[1760725131515,0.1304,3823.5,3823.3,0.001]
[1760725131719,0.1304,3823.5,3823.4,0.4739]
[1760725132217,0.04558719,3823.7,3823.4,0.4739]
[1760725132516,0.04558719,3823.7,3823.5,0.4739]
[1760725132716,0.04558719,3823.7,3823.6,0.4739]
[1760725135536,0.002,3824.0,3823.6,0.4739]
[1760725135734,0.002,3824.0,3823.9,2.61513114]
[1760725135935,0.002,3824.0,3823.9,2.92664952]
[1760725136137,0.002,3824.0,3823.9,3.40054952]
[1760725138036,0.002,3824.0,3823.9,5.12854952]
[1760725138233,0.002,3824.0,3823.9,20.53512146]
[1760725139207,0.002,3824.0,3823.9,5.12854952]
[1760725140545,0.002,3824.0,3823.3,0.001]
[1760725141038,0.002,3824.0,3823.4,0.4739]
[1760725141418,0.002,3824.0,3823.9,2.61513114]
[1760725141643,0.002,3824.0,3823.6,2.61528045]
[1760725141836,0.002,3824.0,3823.7,2.61526308]
[1760725142030,0.002,3824.0,3823.7,3.625426]
[1760725142372,0.002,3824.0,3823.8,2.6151955]
[1760725142575,0.002,3824.0,3823.8,0.4397]
[1760725142761,0.002,3824.0,3823.9,3.05483114]
[1760725143652,0.002,3824.0,3823.9,0.4397]
[1760725143831,0.002,3824.0,3823.9,3.05483114]
[1760725144037,0.002,3824.0,3823.9,3.62445514]
[1760725144343,0.002,3824.0,3823.6,1.728]
[1760725144655,0.002,3824.0,3823.5,1.728]
[1760725144960,0.002,3824.0,3823.9,2.61513114]
[1760725145467,0.002,3824.0,3823.9,15.84627194]
[1760725145680,0.002,3824.0,3823.9,15.53697194]
[1760725146030,0.002,3824.0,3823.9,15.97667194]
[1760725146254,0.002,3824.0,3823.9,16.56938316]
[1760725146761,0.002,3824.0,3823.9,19.1845143]
[1760725146965,0.002,3824.0,3823.9,16.56938316]
[1760725147264,0.002,3824.0,3823.9,16.12968316]
[1760725147759,0.002,3824.0,3823.9,18.7448143]
[1760725147965,0.002,3824.0,3823.9,19.1845143]
[1760725149652,0.002,3824.0,3823.9,18.7448143]
[1760725150736,0.002,3824.0,3823.9,16.12968316]
[1760725151337,0.002,3824.0,3823.9,18.7448143]
[1760725151535,0.002,3824.0,3823.9,0.1304]
[1760725152763,0.002,3824.0,3823.9,2.74553114]
[1760725154068,0.002,3824.0,3823.9,0.1304]
[1760725154372,0.002,3824.0,3823.9,2.74553114]
[1760725154574,0.002,3824.0,3823.9,18.59180308]
[1760725154871,0.002,3824.0,3823.9,20.7125046]
[1760725155081,0.002,3824.0,3823.9,20.2728046]
[1760725155384,0.002,3824.8,3824.7,2.61458415]
[1760725155678,0.002,3825.4,3825.3,2.61417405]
[1760725155877,0.002,3825.4,3825.3,18.04688773]
[1760725156045,0.002,3825.4,3825.3,22.25456419]
[1760725156240,0.002,3825.8,3825.7,2.61390072]
[1760725156485,0.002,3826.4,3825.9,2.61376408]
[1760725156694,0.002,3826.4,3826.1,18.14879939]
[1760725157280,0.002,3826.4,3826.1,18.58849939]
[1760725157480,0.002,3826.4,3826.1,20.20990775]
[1760725157692,0.002,3826.4,3826.1,20.64960775]
[1760725158490,0.002,3826.4,3826.1,20.20990775]
[1760725158698,0.002,3826.4,3826.1,2.06110836]
[1760725159001,0.4306,3826.2,3825.6,1.728]
[1760725159180,0.4306,3826.2,3825.5,18.02055069]
[1760725159492,0.4306,3826.2,3826.1,2.61362745]
[1760725159493,0.002,3826.2,3826.1,2.61362745]
[1760725159694,0.002,3826.2,3826.1,3.07946372]
[1760725159892,0.002,3826.2,3826.1,5.1894419]
[1760725160095,0.002,3826.2,3826.1,5.16330563]
[1760725160267,0.002,3826.4,3826.3,2.61349083]
[1760725160466,0.002,3826.4,3826.3,2.63962573]
[1760725160696,0.002,3826.4,3826.3,3.07932573]
[1760725160896,0.002,3826.4,3826.3,5.15115743]
[1760725161200,0.002,3826.4,3826.3,5.12502253]
[1760725161397,0.002,3826.4,3826.3,4.68532253]
[1760725161574,0.002,3826.4,3825.8,15.40657194]
[1760725161900,0.002,3826.4,3825.9,1.728]
[1760725162607,0.002,3826.4,3826.1,2.61357308]
[1760725162906,0.002,3826.4,3826.3,18.02006277]
[1760725163097,0.002,3826.4,3826.3,20.13163418]
[1760725163401,0.002,3826.4,3826.3,4.72506224]
[1760725164382,0.002,3826.4,3826.3,2.11157141]
[1760725164625,0.002,3826.4,3825.9,1.728]
[1760725164784,0.002,3826.4,3825.6,1.728]
[1760725164785,0.4369,3826.3,3825.6,1.728]
[1760725165126,0.002,3826.4,3825.4,0.4559]
[1760725165325,0.002,3826.4,3826.2,0.1304]
[1760725165681,0.002,3826.4,3826.1,2.61362108]
[1760725165883,0.002,3826.4,3826.3,2.74389083]
[1760725166091,0.002,3826.4,3826.3,0.1304]
[1760725166893,0.4389,3826.4,3826.3,0.1304]
[1760725167495,0.002,3826.4,3826.3,0.1304]
[1760725169608,0.002,3826.4,3826.3,2.74389083]
[1760725169825,0.002,3826.4,3826.3,3.02099347]
[1760725170125,0.002,3826.4,3826.3,3.04712837]
[1760725170324,0.002,3826.4,3826.3,3.47689347]
[1760725170519,0.002,3826.4,3826.3,3.50302837]
[1760725171033,0.002,3826.4,3826.3,0.40750264]
[1760725171533,0.002,3826.4,3826.3,3.47689347]
[1760725171741,0.002,3826.4,3826.3,3.02099347]
[1760725172096,0.002,3826.4,3826.3,3.47689347]
[1760725173033,0.002,3826.8,3826.7,2.61321765]
[1760725173202,0.002,3826.8,3826.7,18.58927551]
[1760725173526,0.002,3826.8,3826.7,19.17557551]
[1760725173825,0.002,3826.8,3826.7,20.90357551]
[1760725175003,0.002,3827.2,3827.1,4.34094452]
[1760725175229,0.4369,3828.7,3827.2,4.34087625]
[1760725175447,0.23,3829.0,3827.6,19.53266713]
[1760725175739,0.23,3829.1,3828.0,4.34033019]
[1760725175940,0.2359,3829.3,3828.0,7.01533019]
[1760725176243,0.2359,3829.3,3828.0,7.47123019]
[1760725176408,0.2359,3829.5,3828.0,8.47959466]
[1760725177106,0.2359,3830.4,3829.1,1.728]
[1760725177331,0.2359,3830.4,3829.7,1.728]
[1760725177537,0.2359,3830.6,3829.8,1.69200639]
[1760725177705,0.2359,3830.6,3829.8,4.30310209]
[1760725178025,0.2359,3830.6,3829.8,1.69200639]
[1760725178426,0.4369,3830.5,3829.2,5.45589954]
[1760725178628,0.4369,3830.5,3829.4,1.728]
[1760725178830,0.4369,3830.5,3829.6,1.728]
[1760725179030,0.4369,3830.5,3829.6,4.33923449]
[1760725179248,0.4369,3830.5,3829.6,2.61118782]
[1760725179446,0.4369,3830.5,3829.4,2.61135097]
[1760725179447,0.4369,3830.5,3829.7,0.52225388]
[1760725179851,0.4369,3830.5,3829.3,1.728]
[1760725180222,0.4369,3830.5,3829.6,1.728]
[1760725181037,0.2359,3831.0,3829.8,2.6111024]
[1760725181353,0.2359,3831.0,3830.0,2.61096605]
[1760725181548,0.2359,3831.0,3830.1,2.61086845]
[1760725181854,0.2359,3831.0,3830.6,2.61054747]
[1760725182058,0.4369,3831.6,3830.6,2.61049073]
[1760725182353,0.4369,3831.6,3830.5,2.61058223]
[1760725182648,0.4369,3831.5,3830.1,2.25018466]
[1760725182821,0.4369,3831.4,3830.2,0.53800847]
[1760725183253,0.04749428,3831.7,3830.6,2.61050313]
[1760725183438,0.4369,3831.6,3830.6,2.61050313]
[1760725183621,0.4369,3831.6,3830.3,2.61075598]
[1760725183826,0.4369,3831.6,3830.5,2.61059579]
[1760725184050,0.4369,3831.5,3830.2,2.26600847]
[1760725184351,0.4369,3831.4,3830.4,4.33864211]
[1760725184550,0.4369,3831.4,3830.2,0.53800847]
[1760725184755,0.4369,3831.3,3830.2,0.53800847]
[1760725185348,0.4369,3831.3,3830.3,0.75508954]
[1760725185545,0.4369,3831.3,3831.2,0.1304]
[1760725187668,0.002,3831.4,3831.2,0.1304]
[1760725188575,0.4369,3831.3,3831.2,0.1304]
[1760725190753,0.4369,3831.3,3829.2,0.1704]
[1760725190988,1.728,3831.2,3829.4,2.61131401]
[1760725191286,2.61036425,3830.9,3829.4,2.61131401]
[1760725191484,2.61052107,3830.7,3829.4,2.61137244]
[1760725191867,0.4506,3830.6,3829.5,1.728]
[1760725192076,2.61052107,3830.7,3829.4,1.728]
[1760725192077,0.4506,3830.5,3829.4,1.728]
[1760725192280,0.4506,3830.5,3829.2,0.1704]
[1760725192281,0.4506,3830.4,3828.9,0.1286]
[1760725192594,0.4506,3830.4,3829.1,2.61156772]
[1760725192750,0.2359,3830.8,3829.7,2.61116007]
[1760725193082,0.2359,3830.8,3829.2,0.47271511]
[1760725193083,0.6865,3830.8,3829.5,0.4466]
[1760725193285,0.6865,3830.8,3829.8,2.61104021]
[1760725193470,0.6865,3830.8,3829.9,0.02611034]
[1760725193471,0.92795,3830.8,3829.9,0.02611034]
[1760725193784,0.73200422,3830.8,3829.7,2.6111492]
[1760725194092,0.73200422,3830.8,3829.7,2.61111344]
[1760725194702,0.73200422,3830.8,3829.6,2.61121527]
[1760725194992,0.33423104,3830.7,3829.7,2.61115762]
[1760725196705,0.33423104,3830.7,3829.6,2.61119969]
[1760725196904,0.4506,3830.6,3829.5,1.728]
[1760725197060,0.4506,3830.5,3829.3,0.4466]
[1760725197263,0.4506,3830.5,3829.6,2.61119435]
[1760725198686,0.73200422,3830.8,3829.5,0.4466]
[1760725198885,0.73200422,3830.8,3829.7,2.61115983]
[1760725199053,0.73200422,3830.8,3829.6,2.61123877]
[1760725199255,0.73200422,3830.8,3829.6,0.30578388]
[1760725199457,2.61205085,3831.4,3829.9,2.61102539]
[1760725199458,0.2173,3831.1,3829.9,2.61102539]
[1760725199690,0.4526,3831.4,3830.2,2.6108037]
[1760725199876,0.4526,3831.4,3830.3,0.1704]
[1760725200056,0.4526,3831.4,3830.4,2.61068438]
[1760725200259,0.4526,3831.4,3830.3,0.1704]
[1760725200481,0.4526,3831.4,3830.3,2.78115896]
[1760725200678,0.002,3831.4,3830.4,0.47270693]
[1760725200878,0.4526,3831.4,3830.3,2.78114571]
[1760725201087,0.4526,3831.4,3831.1,0.1304]
[1760725201295,0.002,3831.4,3831.1,0.1304]
[1760725201616,0.4506,3831.3,3831.1,0.1304]
[1760725201804,0.4506,3831.2,3831.1,0.1304]
[1760725202014,0.002,3831.4,3831.1,0.1304]
[1760725203084,0.002,3831.3,3831.1,0.1304]
[1760725203272,0.002,3831.3,3831.2,0.592]
[1760725203473,0.002,3831.3,3831.2,3.91379737]
[1760725204389,0.002,3831.3,3831.2,3.33254825]
[1760725204915,0.002,3831.3,3831.2,3.22824973]
[1760725205117,0.002,3831.3,3831.2,4.95624973]
[1760725205285,0.002,3831.3,3831.2,5.47613466]
[1760725205621,0.002,3831.3,3831.2,5.45003318]
[1760725205820,0.002,3831.3,3831.2,5.06093392]
[1760725205971,0.002,3831.3,3831.2,5.96436991]
[1760725206620,0.002,3831.3,3831.2,6.09689334]
[1760725207793,0.002,3831.3,3831.2,5.96436991]
[1760725208109,0.002,3831.3,3831.2,1.728]
[1760725208411,0.002,3831.3,3830.5,3.1344]
[1760725208582,0.002,3831.3,3830.5,0.4634]
[1760725209016,0.4399,3831.3,3830.1,0.4634]
[1760725209181,0.4399,3831.3,3830.3,2.78111042]
[1760725209505,0.4379,3831.2,3830.2,2.61081711]
[1760725209708,0.4379,3831.1,3829.8,0.1704]
[1760725209882,0.4379,3831.1,3830.4,2.61069148]
[1760725210083,0.4379,3831.1,3829.9,0.4634]
[1760725210284,0.4379,3831.1,3830.3,2.6107479]
[1760725210684,0.4379,3831.1,3830.1,2.61089788]
[1760725211007,0.4379,3831.1,3830.2,2.61082972]
[1760725211210,0.4379,3831.1,3830.3,2.61074821]
[1760725211384,0.4379,3831.1,3830.2,2.61081387]
[1760725211580,0.4379,3831.1,3829.9,0.4634]
[1760725211814,0.4379,3831.1,3830.5,2.61061766]
[1760725212191,0.002,3831.3,3830.5,2.61061766]
[1760725212402,0.002,3831.3,3830.6,0.02610557]
[1760725215109,0.002,3831.7,3831.6,4.46827576]
[1760725215909,0.002,3831.7,3831.6,4.49437451]
[1760725216108,0.002,3831.7,3831.6,5.17871362]
[1760725216494,0.002,3831.7,3831.6,5.64211362]
[1760725217135,0.002,3831.7,3831.6,5.17871362]
[1760725217298,0.002,3831.7,3831.6,4.46827576]
[1760725218438,0.002,3831.7,3831.6,4.80127576]
[1760725219106,0.002,3832.1,3832.0,4.33760334]
[1760725219309,2.61349924,3835.2,3832.0,4.33760334]
[1760725219310,0.2223,3833.6,3832.4,4.33733096]
[1760725219507,0.4379,3833.5,3832.4,4.33733096]
[1760725219707,0.4379,3833.3,3832.4,4.33733096]
[1760725220031,0.2223,3833.6,3832.4,4.33733096]
[1760725220032,0.2223,3832.9,3832.4,4.33733096]
[1760725220328,0.2223,3832.9,3832.4,2.60933096]
[1760725221039,0.2223,3832.9,3831.8,1.728]
[1760725221236,0.2223,3832.9,3832.4,2.60933096]
[1760725221536,0.2223,3832.9,3831.8,1.728]
[1760725221745,0.4477,3832.4,3831.2,0.1495]
[1760725221901,0.4477,3832.4,3832.0,2.60955927]
[1760725222223,0.2223,3832.9,3831.1,0.1495]
[1760725222224,0.4477,3832.3,3831.1,0.1495]
[1760725222611,0.4477,3832.3,3831.9,2.60965704]
[1760725223133,0.4477,3832.8,3831.1,2.3161]
[1760725223334,0.4477,3832.8,3832.2,2.60946089]
[1760725223535,0.4477,3832.8,3832.3,2.60936578]
[1760725223846,0.4477,3832.8,3832.4,2.60933096]
[1760725224136,0.2223,3832.9,3832.1,2.60949382]
[1760725224363,0.4477,3832.4,3832.3,2.60937099]
[1760725224732,0.4477,3832.4,3832.1,0.26094938]
[1760725224956,0.4477,3832.4,3832.3,2.60939905]
[1760725225168,0.4477,3832.8,3832.4,2.60933096]
[1760725225577,0.04547844,3833.1,3832.4,2.60933096]
[1760725225778,0.4477,3833.4,3832.4,2.63542426]
[1760725225976,0.4477,3833.4,3832.4,3.07402426]
[1760725226272,0.2223,3833.6,3832.4,3.07402426]
[1760725226435,0.2223,3833.6,3832.4,4.80202426]
[1760725226637,0.2223,3833.6,3832.4,7.35565008]
[1760725226874,0.2223,3833.6,3832.4,7.32955678]
[1760725228599,0.2223,3833.6,3832.4,7.45995678]
[1760725231193,0.4477,3833.3,3832.4,7.02135678]
[1760725231814,0.4477,3833.3,3832.4,7.45995678]
[1760725232201,0.4477,3833.3,3832.4,7.02135678]
[1760725232573,0.216,3832.6,3832.4,4.28162582]
[1760725232777,0.216,3832.6,3832.4,4.33733096]
[1760725233101,0.4497,3832.5,3831.7,2.60980731]
[1760725233410,0.4497,3832.5,3831.1,15.47572021]
[1760725233411,0.4477,3832.4,3831.1,15.47572021]
[1760725233583,0.002,3832.5,3832.2,2.6094667]
[1760725233787,0.002,3832.5,3831.7,1.728]
[1760725233788,0.002,3832.5,3832.3,2.60933856]
[1760725234213,0.002,3832.5,3832.4,2.60933096]
[1760725236906,0.4497,3832.5,3831.9,1.728]
[1760725237109,0.002,3832.5,3832.4,2.60933096]
[1760725238704,0.002,3832.5,3832.1,0.001]
[1760725238705,0.4497,3832.5,3832.3,2.60935627]
[1760725238881,0.4477,3832.4,3832.1,2.6104896]
[1760725239084,0.4477,3832.3,3832.1,0.001]
[1760725239386,0.002,3832.5,3832.2,2.60942841]
[1760725239893,0.002,3832.5,3832.4,2.60933096]
[1760725240098,0.002,3832.5,3832.2,2.60941198]
[1760725240298,0.002,3832.5,3832.4,2.60933096]
[1760725241299,0.002,3832.5,3832.4,2.63542426]
[1760725241497,0.002,3832.5,3832.4,2.60933096]
[1760725241899,0.002,3832.5,3832.4,2.63542426]
[1760725242608,0.002,3832.5,3832.4,4.90633096]
[1760725242793,0.002,3832.5,3832.4,7.25569237]
[1760725243189,0.002,3832.5,3832.4,6.81709237]
[1760725244187,0.002,3832.5,3832.4,7.25569237]
[1760725245710,0.002,3832.5,3832.4,6.81709237]
[1760725246590,0.002,3832.5,3832.4,4.46773096]
[1760725247088,0.002,3832.5,3832.4,4.93242426]
[1760725250023,0.002,3833.3,3833.2,2.60878639]
[1760725250329,0.002,3833.3,3833.2,19.7934066]
[1760725250488,0.002,3833.3,3833.2,22.7696066]
[1760725250803,0.002,3833.3,3833.2,25.32449405]
[1760725251009,0.002,3833.3,3833.2,24.88589405]
[1760725253294,0.002,3833.3,3833.2,9.55967384]
[1760725253495,0.4448,3833.3,3833.2,4.33678639]
[1760725254595,0.4448,3833.3,3833.2,2.60878639]
[1760725255621,0.4448,3833.3,3832.7,15.32622021]
[1760725255622,0.4448,3833.3,3832.1,0.001]
[1760725255821,0.4448,3833.3,3833.2,2.60878639]
[1760725256610,0.002,3833.3,3833.2,2.60878639]
[1760725256924,0.002,3833.3,3833.2,3.1305561]
[1760725257301,0.4448,3833.3,3833.2,3.1305561]
[1760725257497,0.002,3833.7,3833.6,2.60851419]
[1760725257702,0.13647931,3836.9,3833.6,2.60851419]
[1760725257703,0.4428,3836.5,3835.8,2.60699735]
[1760725258024,0.4428,3836.5,3834.0,2.758]
[1760725258025,0.4428,3835.9,3835.1,15.32622021]
[1760725258232,0.4428,3835.9,3835.8,2.60701809]
[1760725259199,0.2171,3836.1,3836.0,2.60688216]
[1760725260415,0.2171,3836.1,3836.0,0.1296]
[1760725261434,2.82391421,3836.1,3834.7,1.728]
[1760725261634,0.2173,3834.8,3833.9,18.17379974]
[1760725261804,0.2173,3835.0,3834.6,2.60777603]
[1760725262003,0.2173,3835.0,3834.7,0.1296]
[1760725262203,0.2173,3835.5,3834.4,15.32622021]
[1760725262426,0.2173,3835.5,3835.0,2.60756091]
[1760725262628,0.2173,3835.5,3835.4,0.1296]
[1760725264134,0.2171,3836.8,3835.4,15.79192021]
[1760725264307,0.04541404,3836.6,3836.3,2.60662853]
[1760725264511,0.2171,3836.8,3835.9,15.32622021]
[1760725264707,0.2171,3836.8,3836.0,2.60686203]
[1760725264922,0.2171,3836.8,3836.1,2.60681351]
[1760725265312,0.2171,3836.8,3835.8,2.6070175]
[1760725265519,0.2171,3836.8,3836.4,2.60654878]
[1760725265718,0.2171,3836.8,3836.0,0.2319]
[1760725265918,0.2171,3836.8,3836.4,2.6065936]
[1760725266135,0.2171,3836.8,3835.9,15.32622021]
[1760725266339,0.2171,3836.8,3835.5,1.728]
[1760725266538,2.82348545,3836.8,3835.5,1.728]
[1760725266740,0.2173,3835.6,3834.5,0.2319]
[1760725267332,0.2173,3835.6,3834.6,0.4657]
[1760725267516,0.2173,3835.6,3834.4,15.32622021]
[1760725267714,0.2173,3835.6,3834.7,2.60769835]
[1760725267918,0.2173,3835.6,3834.8,2.60768546]
[1760725268113,0.2173,3835.6,3834.5,2.6078489]
[1760725268317,0.2173,3835.6,3834.6,2.60782442]
[1760725268635,0.2173,3835.6,3834.5,2.60789695]
[1760725268802,0.2173,3835.6,3834.2,0.2319]
[1760725269003,0.2173,3835.6,3834.2,2.1166121]
[1760725269221,0.2173,3835.6,3834.7,2.60771871]
[1760725269435,0.2173,3835.6,3834.2,2.1166121]
[1760725269648,0.2173,3835.6,3834.5,2.60784712]
[1760725269809,2.60722414,3835.5,3834.4,2.60796981]
[1760725270006,0.2173,3834.6,3834.4,2.60796981]
[1760725270245,0.2173,3834.9,3834.5,2.60790194]
[1760725270942,0.28245241,3835.4,3834.2,2.60810147]
[1760725270943,0.28245241,3835.4,3834.3,1.75408037]
[1760725271106,0.26274422,3835.6,3834.3,1.75408037]
[1760725271107,0.2173,3835.6,3834.6,0.4657]
[1760725271417,0.2173,3835.6,3835.3,2.60734339]
[1760725271610,0.04544187,3836.1,3835.5,2.6071744]
[1760725271611,0.2173,3835.9,3835.5,2.6071744]
[1760725271938,0.2173,3835.9,3835.4,2.60727081]
[1760725271939,0.04544187,3836.1,3835.6,0.02607154]
[1760725272108,0.04544187,3836.1,3835.4,15.32622021]
[1760725272109,0.2171,3836.8,3836.4,2.60658999]
[1760725272309,0.2171,3836.8,3835.8,0.02607018]
[1760725272539,0.04542851,3836.9,3835.4,15.32622021]
[1760725272540,0.04542851,3836.9,3836.0,15.32622021]
[1760725272863,0.2171,3836.9,3836.1,1.57919202]
[1760725273162,0.2171,3836.9,3836.8,2.60633861]
[1760725273448,0.04542345,3837.6,3836.6,2.60647448]
[1760725273750,0.04542345,3837.6,3836.7,2.60638916]
[1760725273948,0.04542345,3837.6,3836.1,3.30719202]
[1760725274165,0.04542345,3837.6,3837.1,0.1296]
[1760725274512,2.60587811,3837.5,3837.1,0.1296]
[1760725274818,0.005,3837.2,3837.1,0.1296]
[1760725276038,0.005,3837.2,3836.0,2.60684792]
[1760725276209,0.2790538,3837.2,3836.8,0.1296]
[1760725276410,0.2171,3836.9,3836.4,0.1296]
[1760725276818,0.2171,3836.9,3836.0,0.1296]
[1760725276819,2.60665576,3836.4,3836.0,0.1296]